fUSD/lending_fUSD_20240612
["ID","MTS","AMOUNT","RATE_DAILY","PERIOD"]
[329171301,1718150835173,-449.01915721,0.00011274,2]
[329171302,1718150835510,-155.0,0.00011274,2]
[329171303,1718150835536,-6916.56354744,0.00011275,2]
[329171304,1718150854244,-3223.47841101,0.00011274,2]
[329171327,1718151032704,-296.86150818,0.00010396,2]
[329171328,1718151032715,-407.68898763,0.00010397,2]
[329171329,1718151032728,-217.4798775,0.00010397,2]
[329171330,1718151032741,-626.31808426,0.00010398,2]
[329171331,1718151032752,-429.51141088,0.00010402,2]
[329171332,1718151032763,-958.09137898,0.0001071,2]
[329171333,1718151032777,-1722.648727,0.00011214,2]
[329171334,1718151032788,-514.37376451,0.00011274,2]
[329171335,1718151033017,-674.5965,0.00011274,2]
[329171336,1718151033109,-1171.82438398,0.00011274,2]
[329171337,1718151033120,-1240.84052434,0.00011274,2]
[329171338,1718151033134,-123.00390067,0.00011274,2]
[329171339,1718151033144,-647.49,0.00012174,2]
[329171340,1718151033155,-8922.35268778,0.000124,2]
[329171341,1718151033166,-453.33042599,0.00012458,2]
[329171342,1718151033177,-250.0,0.00012863,2]
[329171343,1718151033189,-250.0,0.00013396,2]
[329171344,1718151033200,-347.33,0.00013699,2]
[329171345,1718151033212,-187.24,0.00013699,2]
[329171346,1718151033223,-1000.0,0.000139,2]
[329171347,1718151033234,-13865.7704,0.000139,2]
[329171348,1718151033247,-163.8151,0.000139,2]
[329171349,1718151033258,-2718.02537183,0.000139,2]
[329171373,1718151038335,-886.43372817,0.000139,2]
[329171374,1718151038346,-2388.80135634,0.000139,2]
[329171375,1718151038359,-111.19864366,0.000139,2]
[329171376,1718151038368,-469.09719527,0.000139,2]
[329171377,1718151038386,-321.33678324,0.000139,2]
[329171378,1718151038400,-215.64274998,0.000139,2]
[329171379,1718151038414,-310.5791492,0.00013928,2]
[329171382,1718151039269,-72.14735223,0.00013928,2]
[329171384,1718151039280,-152.22,0.0001399,2]
[329171386,1718151039291,-777.2630943,0.00013998,2]
[329171393,1718151039367,-714.54835717,0.00013998,2]
[329171395,1718151039378,-329.039654,0.00013998,2]
[329171397,1718151039416,-282.5647121,0.00013998,2]
[329171399,1718151039427,-315.54955651,0.00013998,2]
[329171401,1718151039438,-208.66606429,0.00013998,2]
[329171403,1718151039450,-2817.87319845,0.00013998,2]
[329171405,1718151039462,-172.65390318,0.00013998,2]
[329171407,1718151039479,-175.0,0.00013998,2]
[329171409,1718151039491,-338.91704323,0.00013998,2]
[329171411,1718151039504,-484.92314426,0.00013998,2]
[329171413,1718151039516,-864.46411372,0.00013998,2]
[329171415,1718151039529,-334.17412539,0.00013998,2]
[329171417,1718151039544,-4444.03789171,0.00013998,2]
[329171419,1718151039556,-241.67696198,0.00013998,2]
[329171421,1718151039567,-886.26256298,0.00013998,2]
[329171422,1718151039578,-155.0,0.00013998,2]
[329171424,1718151039590,-1104.35699393,0.00013998,2]
[329171426,1718151039602,-155.0,0.00013998,2]
[329171428,1718151039613,-177.85934389,0.00013998,2]
[329171430,1718151039625,-5212.39815753,0.00013998,2]
[329171432,1718151039636,-1529.81816202,0.00013998,2]
[329171434,1718151039651,-160.35393336,0.00013999,2]
[329171435,1718151039662,-35482.43622612,0.00013999,2]
[329171438,1718151039677,-100872.68518435,0.00014,2]
[329171440,1718151039692,-9840.98129079,0.00014,2]
[329171442,1718151039706,-766.0,0.00014,2]
[329171455,1718151039845,-1352.2184254,0.00014,2]
[329171458,1718151039857,-9525.24153384,0.00014,2]
[329171460,1718151039871,-558.31772492,0.00014,2]
[329171476,1718151040043,-10312.64728852,0.00014,2]
[329171478,1718151040056,-235643.61143515,0.00014,2]
[329171480,1718151040070,-5403.48247186,0.00014,2]
[329171485,1718151040118,-492.414,0.00014,2]
[329171488,1718151040133,-376.17167403,0.00014,2]
[329171490,1718151040148,-16958.54404651,0.00014,2]
[329171495,1718151040197,-6745.24388495,0.00014,2]
[329171561,1718151041119,-5778.62633651,0.00014,2]
[329171563,1718151041132,-4959.08758781,0.00014,2]
[329171565,1718151041147,-1748.56626615,0.00014,2]
[329171567,1718151041160,-1120.0285415,0.00014,2]
[329171575,1718151041254,-13888.79313183,0.00014,2]
[329171577,1718151041267,-161071.75039095,0.00014,2]
[329171587,1718151041376,-23335.13535588,0.00014,2]
[329171643,1718151042082,-1404.90517718,0.00014,2]
[329171645,1718151042096,-940.06747296,0.00014,2]
[329171779,1718151043718,-1256.053678,0.00014,2]
[329171810,1718151044063,-747.25047995,0.00014,2]
[329171846,1718151044477,-5080.24402854,0.00014,2]
[329171848,1718151044487,-199.77429947,0.00014,2]
[329171850,1718151044498,-141732.15774915,0.00014,2]
[329171852,1718151044509,-155.9550727,0.00014,2]
[329171854,1718151044521,-1043.04984144,0.00014,2]
[329171856,1718151044531,-2000.0,0.00014,2]
[329171858,1718151044542,-200.0,0.00014,2]
[329171860,1718151044553,-2140.99811,0.00014,2]
[329171862,1718151044563,-955.2706356,0.00014016,2]
[329171864,1718151044576,-70626.4835576,0.00014026,2]
[329171866,1718151044586,-5637.49016832,0.00014036,2]
[329172077,1718151047040,-639.94,0.00013151,2]
[329172079,1718151047051,-2182.01410663,0.00013999,2]
[329172081,1718151047062,-625.68757549,0.00013999,2]
[329172083,1718151047072,-2975.6105046,0.00014036,2]
[329172388,1718151364814,-5409.7226,0.000103,2]
[329172389,1718151364863,-296.86150818,0.00011216,2]
[329172390,1718151364907,-678.77420135,0.00011274,2]
[329172391,1718151364951,-300.0,0.00011274,2]
[329172392,1718151364989,-500.0,0.00011275,2]
[329172393,1718151365022,-500.0,0.00011275,2]
[329172394,1718151365068,-500.0,0.00011275,2]
[329172395,1718151365099,-500.0,0.00011275,2]
[329172396,1718151365131,-500.0,0.00011275,2]
[329172397,1718151365164,-500.0,0.00011275,2]
[329172398,1718151365449,-500.0,0.00011275,2]
[329172399,1718151365479,-500.0,0.00011275,2]
[329172400,1718151365512,-500.0,0.00011275,2]
[329172401,1718151365579,-500.0,0.00011275,2]
[329172402,1718151365612,-500.0,0.00011275,2]
[329172403,1718151365651,-500.0,0.00011275,2]
[329172404,1718151365685,-500.0,0.00011275,2]
[329172405,1718151365717,-500.0,0.00011275,2]
[329172406,1718151365757,-500.0,0.00011275,2]
[329172407,1718151365791,-500.0,0.00011275,2]
[329172408,1718151365834,-500.0,0.00011275,2]
[329172409,1718151365867,-794.0,0.00011275,2]
[329172410,1718151370565,901.642159,0.0001116,2]
[329172411,1718151464844,-958.09137898,0.00010602,2]
[329172412,1718151464878,-155.0,0.0001116,2]
[329172413,1718151476040,458.44732669,0.00010602,2]
[329172414,1718151482162,155.0,0.0001116,2]
[329172415,1718151498300,213.2442127,0.0001116,2]
[329172417,1718151571934,781.66,0.00011442,2]
[329172418,1718152032161,-163.3366024,0.00013116,2]
[329172419,1718152032184,-407.68898763,0.00013116,2]
[329172420,1718152032209,-942.49208655,0.00013117,2]
[329172421,1718152032232,-250.0,0.00013121,2]
[329172422,1718152032254,-1262.87272792,0.00013164,2]
[329172423,1718152110082,773.64,0.00011389,2]
[329172435,1718152233203,-250.0,0.00013136,2]
[329172436,1718152233214,-249.2998041,0.00013164,2]
[329172437,1718152233226,-1075.77746798,0.00013164,2]
[329172438,1718152233236,-1000.0,0.00013229,2]
[329172439,1718152233247,-594.57387605,0.00013273,2]
[329172440,1718152233265,-677.73612395,0.00013273,2]
[329172441,1718152233276,-773.64,0.00013653,2]
[329172442,1718152233287,-160.13,0.00013699,2]
[329172443,1718152233297,-173.66,0.00013699,2]
[329172444,1718152233308,-161.32455877,0.000138,2]
[329172445,1718152233318,-300.0,0.00013899,2]
[329172446,1718152233328,-1000.0,0.000139,2]
[329172447,1718152233339,-2026.41741373,0.000139,2]
[329172448,1718152233353,-260.79473481,0.000139,2]
[329172449,1718152233368,-676.76672063,0.000139,2]
[329172450,1718152233381,-36.02113083,0.000139,2]
[329172451,1718152233392,-200.0,0.00013923,2]
[329172452,1718152233403,-500.0,0.00013923,2]
[329172453,1718152233416,-200.0,0.00013923,2]
[329172454,1718152233427,-97.67886917,0.00013923,2]
[329172455,1718152233440,-402.32113083,0.00013923,2]
[329172456,1718152233451,-200.0,0.00013924,2]
[329172457,1718152233463,-1000.0,0.00013924,2]
[329172458,1718152233473,-500.0,0.00013924,2]
[329172459,1718152233484,-500.0,0.00013924,2]
[329172460,1718152233495,-200.0,0.00013924,2]
[329172461,1718152233505,-563.10404294,0.00013935,2]
[329172462,1718152233516,-319.0874,0.00013936,2]
[329172463,1718152233527,-867.6847,0.00013936,2]
[329172464,1718152233537,-563.10404295,0.00013938,2]
[329172465,1718152233548,-266.39840914,0.00013966,2]
[329172466,1718152233559,-1532.0363,0.00013988,2]
[329172467,1718152233570,-593.03390837,0.00014,2]
[329172468,1718152233580,-344.18,0.00014026,3]
[329172469,1718152233591,-8440.39006577,0.00014028,2]
[329172470,1718152233606,-455.05201726,0.00014028,2]
[329172471,1718152233644,-4611.58520454,0.00014028,2]
[329172472,1718152233657,-2275.48656386,0.00014028,2]
[329172473,1718152233768,-2260.06649913,0.00014028,2]
[329172474,1718152233836,-4668.04030603,0.00014028,2]
[329172475,1718152233851,-578.5596183,0.00014028,2]
[329172476,1718152233875,-1184.85534718,0.00014028,2]
[329172483,1718152234053,-499.2927066,0.00014028,2]
[329172485,1718152234067,-162.65897133,0.00014028,2]
[329172487,1718152234078,-190.90850866,0.00014034,2]
[329172489,1718152234092,-108.47794156,0.00014034,2]
[329172490,1718152234106,-50.08144725,0.00014034,2]
[329172491,1718152234118,-1446.65511409,0.00014034,2]
[329172492,1718152234130,-155.61375484,0.00014034,2]
[329172493,1718152234141,-239.66069874,0.00014034,2]
[329172494,1718152234151,-293.40453425,0.00014034,2]
[329172495,1718152234162,-437.21892219,0.00014034,2]
[329172496,1718152234176,-625.97046574,0.00014034,2]
[329172497,1718152234187,-407.43731595,0.00014034,2]
[329172498,1718152234198,-179.69787641,0.00014034,2]
[329172499,1718152234209,-2040.19756488,0.00014035,2]
[329172500,1718152234220,-217.32093162,0.00014035,2]
[329172501,1718152234231,-267.19199716,0.00014035,2]
[329172502,1718152234243,-95483.31930481,0.00014036,2]
[329172503,1718152234254,-5775.53904364,0.00014036,2]
[329172504,1718152234265,-2000.0,0.00014036,2]
[329172505,1718152234276,-200.0,0.00014036,2]
[329172506,1718152234287,-180.5825291,0.00014036,2]
[329172507,1718152234299,-455.25316176,0.00014036,2]
[329172508,1718152234309,-677.7463296,0.00014038,2]
[329172509,1718152234320,-8359.0298176,0.00014038,2]
[329172510,1718152234331,-1649.69425742,0.00014048,2]
[329172518,1718152238829,-1274.25252714,0.00014048,2]
[329172519,1718152238864,-45.88725454,0.00014048,2]
[329172520,1718152238875,-42623.311276,0.00014048,2]
[329172521,1718152238892,-1324.9885316,0.00014058,2]
[329172522,1718152238913,-155.92281657,0.00014138,2]
[329172523,1718152238923,-2000.0,0.00014176,2]
[329172524,1718152238936,-200.0,0.00014176,2]
[329172525,1718152238947,-2000.0,0.00014318,2]
[329172526,1718152238959,-200.0,0.00014318,2]
[329172527,1718152238970,-851.06,0.00014384,2]
[329172528,1718152238982,-417.53,0.00014384,2]
[329172529,1718152238993,-2000.0,0.00014461,2]
[329172530,1718152239004,-200.0,0.00014461,2]
[329172531,1718152239015,-1594.06979517,0.00014606,2]
[329172532,1718152239025,-200.0,0.00014606,2]
[329172533,1718152239037,-500.0,0.000148,2]
[329172534,1718152239049,-1220.32089914,0.000148,2]
[329172535,1718152239059,-321.18908493,0.000148,2]
[329172536,1718152239071,-1000.0,0.00014883,2]
[329172537,1718152239083,-1531.93502975,0.00014897,2]
[329172538,1718152239096,-42486.47049665,0.00014898,2]
[329172539,1718152239197,-991.94447573,0.00014898,2]
[329172540,1718152239211,-460.240702,0.00014898,2]
[329172541,1718152239959,-4646.65252503,0.00014898,2]
[329172542,1718152241542,-806.5279309,0.00014898,2]
[329172543,1718152242061,-195608.16386969,0.00014898,2]
[329172544,1718152242072,-3163.01523537,0.000149,2]
[329172545,1718152242083,-195.37293297,0.000149,2]
[329172546,1718152242100,-177.53318555,0.000149,2]
[329172547,1718152242112,-152.21,0.0001499,2]
[329172548,1718152242123,-152.21,0.0001499,2]
[329172549,1718152242134,-152.21,0.0001499,2]
[329172550,1718152242144,-152.21,0.0001499,2]
[329172551,1718152242155,-152.21,0.0001499,2]
[329172552,1718152242166,-152.21,0.0001499,2]
[329172553,1718152242177,-2000.0,0.00014998,2]
[329172554,1718152242189,-159.25738162,0.00014999,2]
[329172555,1718152242199,-514.0,0.00015,2]
[329172556,1718152242210,-1778652.19591677,0.00015,2]
[329172557,1718152242223,-621.32112059,0.00015,2]
[329172558,1718152242234,-200.0,0.00015,2]
[329172559,1718152242245,-578.77024055,0.00015,2]
[329172560,1718152242256,-2294.58497119,0.00015,2]
[329172561,1718152242268,-489.0,0.00015,2]
[329172562,1718152242278,-151.0,0.00015,2]
[329172563,1718152242289,-151.0,0.00015,2]
[329172564,1718152242300,-153.447692,0.00015,2]
[329172565,1718152242310,-151.0,0.00015,2]
[329172566,1718152242321,-151.0,0.00015,2]
[329172567,1718152242332,-151.0,0.00015,2]
[329172568,1718152242342,-151.0,0.00015,2]
[329172569,1718152242353,-151.0,0.00015,2]
[329172570,1718152242364,-301.196804,0.00015,2]
[329172571,1718152242382,-310.6,0.00015,2]
[329172572,1718152242395,-420.0,0.00015229,2]
[329172573,1718152242405,-150.0,0.00015616,2]
[329172574,1718152242416,-269.12,0.00015616,2]
[329172575,1718152242426,-300.0,0.00015616,2]
[329172576,1718152242436,-353.53,0.00015616,2]
[329172577,1718152242447,-385.86,0.00015616,2]
[329172578,1718152242458,-150.0,0.00015616,2]
[329172579,1718152242469,-150.0,0.00015616,2]
[329172580,1718152242479,-526.55,0.00015616,2]
[329172581,1718152242490,-773.64,0.00015917,2]
[329172582,1718152242501,-1220.32089914,0.00015918,2]
[329172583,1718152242512,-1272.31,0.00016013,2]
[329172584,1718152242523,-321.18908491,0.00016338,2]
[329172585,1718152242534,-3000.0,0.000164,2]
[329172586,1718152242545,-160.13,0.00016438,2]
[329172587,1718152242558,-1806.78931483,0.000165,2]
[329172588,1718152242568,-1000.0,0.00016537,2]
[329172589,1718152242579,-587.0,0.00016686,2]
[329172590,1718152242589,-300.0,0.00016721,2]
[329172591,1718152242600,-150.0,0.00016721,2]
[329172592,1718152242610,-300.0,0.00016721,2]
[329172593,1718152242621,-150.0,0.00016721,2]
[329172594,1718152242632,-300.63,0.00016721,2]
[329172595,1718152242642,-150.0,0.00016721,2]
[329172596,1718152242653,-150.0,0.00016721,2]
[329172597,1718152242663,-300.0,0.00016721,2]
[329172598,1718152242674,-150.0,0.00016721,2]
[329172599,1718152242685,-150.0,0.00016721,2]
[329172600,1718152242696,-353.53,0.00016721,2]
[329172601,1718152242707,-150.0,0.00016721,2]
[329172602,1718152242718,-150.0,0.00016721,2]
[329172603,1718152242729,-353.53,0.00016721,2]
[329172604,1718152242739,-150.0,0.00016721,2]
[329172605,1718152242750,-150.0,0.00016721,2]
[329172606,1718152242933,-164.25,0.00016721,2]
[329172607,1718152242945,-300.0,0.00016721,2]
[329172608,1718152242957,-150.0,0.00016721,2]
[329172609,1718152242968,-150.0,0.00016721,2]
[329172610,1718152242979,-353.53,0.00016721,2]
[329172611,1718152242990,-150.0,0.00016721,2]
[329172612,1718152243001,-300.0,0.00016721,2]
[329172613,1718152243012,-526.55,0.00016721,2]
[329172614,1718152243023,-526.55,0.00016721,2]
[329172615,1718152243034,-422.78,0.00016721,2]
[329172616,1718152243045,-300.0,0.00016721,2]
[329172617,1718152243056,-422.78,0.00016721,2]
[329172618,1718152243066,-526.55,0.00016721,2]
[329172619,1718152243079,-845.56,0.00016721,2]
[329172620,1718152243093,-353.53,0.00016721,2]
[329172621,1718152243103,-1220.32089914,0.00017035,2]
[329172622,1718152243115,-353.53,0.00017543,2]
[329172623,1718152243125,-353.53,0.00017543,2]
[329172624,1718152243138,-166.68,0.00017543,2]
[329172625,1718152243149,-706.82,0.00017543,2]
[329172626,1718152243159,-164.25,0.00017543,2]
[329172627,1718152243170,-247.77,0.00017543,2]
[329172628,1718152243181,-905.13,0.00017543,2]
[329172629,1718152243192,-164.25,0.00017543,2]
[329172630,1718152243203,-239.42,0.00017543,2]
[329172631,1718152243214,-150.0,0.00017543,2]
[329172632,1718152243224,-150.0,0.00017543,2]
[329172633,1718152243235,-300.0,0.00017543,2]
[329172634,1718152243246,-150.0,0.00017543,2]
[329172635,1718152243257,-164.25,0.00017543,2]
[329172636,1718152243268,-150.0,0.00017543,2]
[329172638,1718152243278,-370.45,0.00017543,2]
[329172639,1718152243289,-150.0,0.00017543,2]
[329172640,1718152243300,-845.18,0.00017543,2]
[329172641,1718152243311,-614.29,0.00017543,2]
[329172642,1718152243322,-164.25,0.00017548,2]
[329172643,1718152243333,-164.25,0.00017548,2]
[329172644,1718152243344,-164.25,0.00017548,2]
[329172645,1718152243355,-1053.1,0.00017548,2]
[329172646,1718152243367,-321.18908491,0.00017877,2]
[329172647,1718152243378,-442.75229546,0.00018,2]
[329172648,1718152243389,-686.0,0.00018,2]
[329172649,1718152243400,-1968.0,0.00018,2]
[329172650,1718152243410,-1220.32089914,0.00018153,2]
[329172651,1718152243421,-773.64,0.00018181,2]
[329172652,1718152243432,-1000.0,0.0001819,2]
[329172653,1718152243442,-823.0,0.00018282,2]
[329172654,1718152243452,-162.092,0.00018356,2]
[329172655,1718152243463,-1053.1,0.0001837,2]
[329172656,1718152243474,-937.56930127,0.00018429,2]
[329172657,1718152243484,-1272.31,0.00018753,2]
[329172658,1718152243495,-3000.0,0.000189,2]
[329172659,1718152243506,-411.95127253,0.00019,2]
[329172660,1718152243517,-2486.6320877,0.00019,2]
[329172661,1718152243527,-7370.15444831,0.00019151,2]
[329172662,1718152243539,-1446.71282552,0.00019151,2]
[329172663,1718152243549,-199.85,0.00019168,2]
[329172664,1718152243560,-150.0,0.00019178,2]
[329172665,1718152243571,-266.96973807,0.00019178,2]
[329172666,1718152243582,-171.41656778,0.00019178,2]
[329172667,1718152243593,-173.52802265,0.00019178,2]
[329172668,1718152243604,-277.59127519,0.00019178,2]
[329172669,1718152243617,-173.66,0.00019178,2]
[329172670,1718152243628,-746.41,0.00019178,2]
[329172671,1718152243639,-333.82,0.00019178,2]
[329172672,1718152243649,-1220.32089914,0.0001927,2]
[329172673,1718152243660,-321.18908491,0.00019415,2]
[329172674,1718152243671,-164.0,0.00019562,2]
[329172675,1718152243681,-2540.18,0.00019562,2]
[329172676,1718152243693,-446.0,0.00019562,2]
[329172677,1718152243704,-809.0,0.00019562,2]
[329172678,1718152243714,-3176.0,0.00019562,2]
[329172679,1718152243725,-1303.0,0.00019562,2]
[329172680,1718152243736,-151.0,0.00019562,2]
[329172681,1718152243747,-151.0,0.00019562,2]
[329172682,1718152243758,-151.0,0.00019562,2]
[329172683,1718152243770,-244.049731,0.00019562,2]
[329172684,1718152243782,-151.0,0.00019562,2]
[329172685,1718152243793,-151.0,0.00019562,2]
[329172686,1718152243804,-151.0,0.00019562,2]
[329172687,1718152243814,-151.0,0.00019562,2]
[329172688,1718152243825,-151.0,0.00019562,2]
[329172689,1718152243835,-151.0,0.00019562,2]
[329172690,1718152243846,-151.0,0.00019562,2]
[329172691,1718152243857,-151.0,0.00019562,2]
[329172692,1718152243869,-151.0,0.00019562,2]
[329172693,1718152243879,-156.490017,0.00019562,2]
[329172694,1718152243908,-151.0,0.00019562,2]
[329172695,1718152243919,-151.0,0.00019562,2]
[329172696,1718152243930,-151.0,0.00019562,2]
[329172697,1718152243941,-151.0,0.00019562,2]
[329172698,1718152243951,-151.0,0.00019562,2]
[329172699,1718152243963,-179.569332,0.00019562,2]
[329172700,1718152243973,-151.0,0.00019562,2]
[329172701,1718152243984,-179.569332,0.00019562,2]
[329172702,1718152243995,-151.0,0.00019562,2]
[329172703,1718152244006,-161.936876,0.00019562,2]
[329172704,1718152244017,-161.936876,0.00019562,2]
[329172705,1718152244028,-345.608599,0.00019562,2]
[329172706,1718152244038,-151.0,0.00019562,2]
[329172707,1718152244049,-345.608599,0.00019562,2]
[329172708,1718152244060,-151.0,0.00019562,2]
[329172709,1718152244071,-6026.297155,0.00019562,2]
[329172710,1718152244083,-151.0,0.00019562,2]
[329172711,1718152244100,-151.0,0.00019562,2]
[329172712,1718152244111,-6026.297155,0.00019562,2]
[329172713,1718152244123,-151.0,0.00019562,2]
[329172714,1718152244134,-151.0,0.00019562,2]
[329172715,1718152244145,-263.097953,0.00019562,2]
[329172716,1718152244156,-263.097953,0.00019562,2]
[329172717,1718152244167,-205.96906,0.00019562,2]
[329172718,1718152244178,-205.96906,0.00019562,2]
[329172719,1718152244188,-151.0,0.00019562,2]
[329172720,1718152244199,-244.233872,0.00019562,2]
[329172721,1718152244210,-151.0,0.00019562,2]
[329172722,1718152244222,-205.086487,0.00019562,2]
[329172723,1718152244233,-205.086487,0.00019562,2]
[329172724,1718152244244,-151.0,0.00019562,2]
[329172725,1718152244255,-978.0,0.00019562,2]
[329172726,1718152244266,-5148.0,0.00019562,2]
[329172727,1718152244277,-151.0,0.00019562,2]
[329172728,1718152244288,-5785.0,0.00019562,2]
[329172729,1718152244299,-358.0,0.00019562,2]
[329172730,1718152244311,-151.0,0.00019562,2]
[329172731,1718152244322,-1573.0,0.00019562,2]
[329172732,1718152244333,-1194.0,0.00019562,2]
[329172733,1718152244344,-38070.0,0.00019562,2]
[329172734,1718152244354,-616.0,0.00019562,2]
[329172735,1718152244366,-151.0,0.00019562,2]
[329172736,1718152244377,-1269.0,0.00019562,2]
[329172737,1718152244388,-151.0,0.00019562,2]
[329172738,1718152244399,-204.37562916,0.00019724,2]
[329172739,1718152244410,-155.0,0.00019724,2]
[329172740,1718152244420,-1000.0,0.00019844,2]
[329172741,1718152244431,-257.9877105,0.0002,2]
[329172742,1718152244442,-155.0,0.0002,4]
[329172743,1718152244453,-812.32066378,0.0002,2]
[329172744,1718152244465,-1780.9840789,0.0002,2]
[329172745,1718152244476,-155.0,0.0002,2]
[329172746,1718152244486,-1011.8835015,0.0002,2]
[329172747,1718152244497,-155.0,0.0002,2]
[329172748,1718152244508,-155.0,0.0002,2]
[329172749,1718152244519,-1981.97860415,0.0002,2]
[329172750,1718152244530,-2241.50359936,0.0002,2]
[329172751,1718152244541,-305.0,0.0002,2]
[329172752,1718152244551,-150.0,0.0002,2]
[329172753,1718152244562,-2740.33596024,0.0002,2]
[329172754,1718152244573,-9260.44,0.0002,3]
[329172755,1718152244584,-151.0,0.0002,2]
[329172756,1718152244595,-151.0,0.0002,2]
[329172757,1718152244606,-151.0,0.0002,2]
[329172758,1718152244618,-789.0,0.0002,2]
[329172759,1718152244629,-528.41173,0.0002,2]
[329172760,1718152244640,-528.41173,0.0002,2]
[329172761,1718152244651,-509.0,0.0002,2]
[329172762,1718152244662,-355.0,0.0002,2]
[329172763,1718152244673,-1000.0,0.0002,2]
[329172764,1718152244684,-226.7178388,0.000201,2]
[329172765,1718152244695,-500.0,0.00020275,2]
[329172766,1718152244706,-500.0,0.00020275,2]
[329172767,1718152244717,-500.0,0.00020275,2]
[329172768,1718152244728,-500.0,0.00020275,2]
[329172769,1718152244739,-500.0,0.00020275,2]
[329172770,1718152244750,-151.0,0.00020275,2]
[329172771,1718152244760,-500.0,0.00020275,2]
[329172772,1718152244771,-151.0,0.00020275,2]
[329172773,1718152244782,-500.0,0.00020275,2]
[329172774,1718152244793,-151.0,0.00020275,2]
[329172775,1718152244803,-578.0,0.00020275,2]
[329172776,1718152244813,-151.0,0.00020275,2]
[329172777,1718152244824,-151.0,0.00020275,2]
[329172778,1718152244835,-151.0,0.00020275,2]
[329172779,1718152244846,-194.0,0.00020275,2]
[329172780,1718152244856,-500.0,0.00020275,2]
[329172781,1718152244868,-500.0,0.00020275,2]
[329172782,1718152244879,-500.0,0.00020275,2]
[329172783,1718152244899,-500.0,0.00020275,2]
[329172784,1718152244913,-502.0,0.00020275,2]
[329172785,1718152244925,-1220.32089914,0.00020388,2]
[329172786,1718152244936,-1782.0,0.000204,2]
[329172787,1718152244947,-773.64,0.00020444,2]
[329172788,1718152244957,-321.18908491,0.00020953,2]
[329172789,1718152244968,-152.21,0.0002099,2]
[329172790,1718152244979,-12722.62581492,0.00021,2]
[329172791,1718152244990,-1250.0,0.00021,2]
[329172792,1718152245001,-500.0,0.00021,2]
[329172793,1718152245012,-500.0,0.00021,2]
[329172794,1718152245022,-151.0,0.00021349,2]
[329172795,1718152245032,-3000.0,0.000214,2]
[329172796,1718152245043,-1220.32089914,0.00021505,2]
[329172797,1718152245054,-216.122027,0.000216,2]
[329172798,1718152245065,-164.247715,0.000216,2]
[329172799,1718152245075,-151.922283,0.000216,2]
[329172800,1718152245086,-164.247715,0.000216,2]
[329172801,1718152245100,-162.091519,0.000216,2]
[329172802,1718152245111,-587.826679,0.000216,2]
[329172803,1718152245121,-2351.306719,0.000216,2]
[329172804,1718152245132,-150.0,0.00021756,2]
[329172805,1718152245143,-150.0,0.00021756,2]
[329172806,1718152245154,-150.0,0.00021756,2]
[329172807,1718152245164,-150.0,0.00021756,2]
[329172808,1718152245175,-150.0,0.00021756,2]
[329172809,1718152245186,-335.98,0.00021756,2]
[329172810,1718152245197,-199.59095128,0.00021815,2]
[329172811,1718152245208,-184.80957673,0.00021815,2]
[329172812,1718152245218,-1576.58702837,0.00021815,2]
[329172813,1718152245229,-383.03280681,0.00021815,2]
[329172814,1718152245240,-1000.0,0.00021816,2]
[329172815,1718152245251,-10000.0,0.00021816,2]
[329172816,1718152245261,-256.764768,0.00021816,2]
[329172817,1718152245272,-151.0,0.00021816,2]